{"text_format":"1","workbook":"xlsx","n_sheets":15,"sheets":["JANVIER","FEVRIER","MARS","AVRIL","MAI","JUIN","JUILLET","AOUT","SEPT","OCT","NOV","DEC","RECAP","Données","Feuil3"],"not_rendered":{"charts":0,"images":0,"macros":0,"external_links":0,"defined_names":0,"comments":0,"pivot_tables":0},"unopened":[],"bounds":{"document_bytes":16777216,"sheet_cells":100000,"rows_first":2000,"rows_last":500,"rows_between":2000,"halvings":0,"cell_chars":16384,"cell_head_chars":4096},"cells_cut":0,"cells_raw":0,"read":"whole","date_system":"1900"}

{"sheet":"JANVIER","index":0,"n_rows":80,"n_cols":27,"rows_kept":80,"cut":false,"hidden":false,"merged":[[79,17,79,18],[8,18,8,19],[79,21,79,23],[9,26,11,26],[8,21,8,26],[9,22,11,22],[9,23,11,23],[9,24,11,24],[9,25,11,25],[0,18,0,19],[1,18,1,19],[2,18,2,19],[3,18,3,19],[4,18,4,19],[7,14,7,15],[8,14,8,15],[79,13,79,14],[4,10,4,11],[7,10,7,11],[8,10,8,11],[0,14,0,15],[1,14,1,15],[2,14,2,15],[3,14,3,15],[4,14,4,15],[3,10,3,11],[3,6,3,7],[2,6,2,7],[1,6,1,7],[79,1,79,2],[79,5,79,6],[79,9,79,10],[5,2,5,3],[6,2,6,3],[1,2,1,3],[0,2,0,3],[7,2,7,3],[8,2,8,3],[9,21,11,21],[8,6,8,7],[7,18,7,19],[4,6,4,7],[7,6,7,7],[3,2,3,3],[4,2,4,3],[2,2,2,3],[0,6,0,7],[0,10,0,11],[1,10,1,11],[2,10,2,11]]}
[null,"Date :",null,null,null,"Date :",null,null,null,"Date :",null,null,null,"Date :",null,null,null,"Date :"]
[null,"Lieu",null,null,null,"Lieu",null,null,null,"Lieu",null,null,null,"Lieu",null,null,null,"Lieu"]
[null,"Responsable",null,null,null,"Responsable",null,null,null,"Responsable",null,null,null,"Responsable",null,null,null,"Responsable"]
[null,"Thèmes",null,null,null,"Thèmes",null,null,null,"Thèmes",null,null,null,"Thèmes",null,null,null,"Thèmes"]
[]
[]
[]
[]
[null,"Autre thème",null,null,null,"Autre thème",null,null,null,"Autre thème",null,null,null,"Autre thème",null,null,null,"Autre thème",null,null,null,"RECAP MENSUEL"]
[null,"Durée",null,null,null,"Durée",null,null,null,"Durée",null,null,null,"Durée",5,null,null,"Durée",3,null,null,"Nb manœuvre tps de travail","Nb manœuvres de repos","TOTAL manœuvres","nb heures totales","heures sup mensuelle","Heures restant sur quota"]
[]
["Personnel","Position",null,null,null,"Position",null,null,null,"Position",null,null,null,"Position",null,null,null,"Position"]
[1,"Repos",{"$f":"IF(OR(B13=\"Garde/SHR\",B13=\"Repos\"),$C$10,\"\")","v":0},null,null,null,{"$f":"IF(OR(F13=\"Garde/SHR\",F13=\"Repos\"),$G$10,\"\")","v":""},null,null,null,{"$f":"IF(OR(J13=\"Garde/SHR\",J13=\"Repos\"),$K$10,\"\")","v":""},null,null,"Garde/SHR",{"$f":"L24","v":0},null,null,"Garde/SHR",{"$f":"IF(OR(R13=\"garde/SHR\",R13=\"repos\"),$S$10,\"\")","v":3},null,null,{"$f":"COUNTIF(B13:J13,\"garde\")","v":0},{"$f":"COUNTIF(B13:J13,\"repos\")","v":1},{"$f":"V13+W13","v":1},{"$f":"SUM(C13:S13)","v":3},null,{"$f":"80-Z13","v":80}]
[2,null,{"$f":"IF(OR(B14=\"Garde/SHR\",B14=\"Repos\"),$C$10,\"\")","v":""},null,null,null,{"$f":"IF(OR(F14=\"Garde/SHR\",F14=\"Repos\"),$G$10,\"\")","v":""},null,null,null,{"$f":"IF(OR(J14=\"Garde/SHR\",J14=\"Repos\"),$K$10,\"\")","v":""},null,null,"Repos",{"$f":"IF(OR(N14=\"garde/SHR\",N14=\"repos\"),$O$10,\"\")","v":5},null,null,"Garde/SHR",3,null,null,{"$f":"COUNTIF(B14:J14,\"garde\")","v":0},{"$f":"COUNTIF(B14:J14,\"repos\")","v":0},{"$f":"V14+W14","v":0},{"$f":"SUM(C14:S14)","v":8},null,{"$f":"80-Z14","v":80}]
[3,null,"",null,null,null,"",null,null,null,"",null,null,"Repos",5,null,null,"Repos",3,null,null,0,0,0,8,null,80]
[4,null,"",null,null,null,"",null,null,null,"",null,null,"Garde/SHR",5,null,null,"Repos",3,null,null,0,0,0,8,null,80]
[5,null,"",null,null,null,"",null,null,null,"",null,null,null,"",null,null,null,"",null,null,0,0,0,0,null,80]
[6,null,"",null,null,null,"",null,null,null,"",null,null,null,"",null,null,null,"",null,null,0,0,0,0,null,80]
[7,null,"",null,null,null,"",null,null,null,"",null,null,null,"",null,null,null,"",null,null,0,0,0,0,null,80]
[8,null,"",null,null,null,"",null,null,null,"",null,null,null,"",null,null,null,"",null,null,0,0,0,0,null,80]
[9,null,"",null,null,null,"",null,null,null,"",null,null,null,"",null,null,null,"",null,null,0,0,0,0,null,80]
[10,null,"",null,null,null,"",null,null,null,"",null,null,null,"",null,null,null,"",null,null,0,0,0,0,null,80]
[11,null,"",null,null,null,"",null,null,null,"",null,null,null,"",null,null,null,{"$f":"IF(OR(R23=\"garde/SHR\",R23=\"repos\"),$S$10,\"\")","v":""},null,null,0,0,0,0,null,80]
[12,null,"",null,null,null,"",null,null,null,"",null,null,null,"",null,null,null,"",null,null,0,0,0,0,null,80]
[13,null,"",null,null,null,"",null,null,null,"",null,null,null,"",null,null,null,"",null,null,0,0,0,0,null,80]
[14,null,"",null,null,null,"",null,null,null,"",null,null,null,"",null,null,null,"",null,null,0,0,0,0,null,80]
[15,null,"",null,null,null,"",null,null,null,"",null,null,null,"",null,null,null,"",null,null,0,0,0,0,null,80]
[16,null,"",null,null,null,"",null,null,null,"",null,null,null,"",null,null,null,"",null,null,0,0,0,0,null,80]
[17,null,"",null,null,null,"",null,null,null,"",null,null,null,"",null,null,null,"",null,null,0,0,0,0,null,80]
[18,null,"",null,null,null,"",null,null,null,"",null,null,null,"",null,null,null,"",null,null,0,0,0,0,null,80]
[19,null,"",null,null,null,"",null,null,null,"",null,null,null,"",null,null,null,"",null,null,0,0,0,0,null,80]
[20,null,"",null,null,null,"",null,null,null,"",null,null,null,"",null,null,null,"",null,null,0,0,0,0,null,80]
[21,null,"",null,null,null,"",null,null,null,"",null,null,null,"",null,null,null,"",null,null,0,0,0,0,null,80]
[22,null,"",null,null,null,"",null,null,null,"",null,null,null,"",null,null,null,"",null,null,0,0,0,0,null,80]
[23,null,"",null,null,null,"",null,null,null,"",null,null,null,"",null,null,null,"",null,null,0,0,0,0,null,80]
[24,null,"",null,null,null,"",null,null,null,"",null,null,null,"",null,null,null,"",null,null,0,0,0,0,null,80]
[25,null,"",null,null,null,"",null,null,null,"",null,null,null,"",null,null,null,"",null,null,0,0,0,0,null,80]
[26,null,"",null,null,null,"",null,null,null,"",null,null,null,"",null,null,null,"",null,null,0,0,0,0,null,80]
[27,null,"",null,null,null,"",null,null,null,"",null,null,null,"",null,null,null,"",null,null,{"$f":"COUNTIF(B39:J39,\"garde\")","v":0},{"$f":"COUNTIF(B39:J39,\"repos\")","v":0},{"$f":"V39+W39","v":0},0,null,{"$f":"80-Z39","v":80}]
[28,null,"",null,null,null,"",null,null,null,"",null,null,null,"",null,null,null,"",null,null,0,0,0,0,null,80]
[29,null,"",null,null,null,"",null,null,null,"",null,null,null,"",null,null,null,"",null,null,0,0,0,0,null,80]
[30,null,"",null,null,null,"",null,null,null,"",null,null,null,"",null,null,null,"",null,null,0,0,0,0,null,80]
[31,null,"",null,null,null,"",null,null,null,"",null,null,null,"",null,null,null,"",null,null,0,0,0,0,null,80]
[32,null,"",null,null,null,"",null,null,null,"",null,null,null,"",null,null,null,"",null,null,0,0,0,0,null,80]
[33,null,"",null,null,null,"",null,null,null,"",null,null,null,"",null,null,null,"",null,null,0,0,0,0,null,80]
[34,null,"",null,null,null,"",null,null,null,"",null,null,null,"",null,null,null,"",null,null,0,0,0,0,null,80]
[35,null,"",null,null,null,"",null,null,null,"",null,null,null,"",null,null,null,"",null,null,0,0,0,0,null,80]
[36,null,"",null,null,null,"",null,null,null,"",null,null,null,"",null,null,null,"",null,null,0,0,0,0,null,80]
[37,null,"",null,null,null,"",null,null,null,"",null,null,null,"",null,null,null,"",null,null,0,0,0,0,null,80]
[38,null,"",null,null,null,"",null,null,null,"",null,null,null,"",null,null,null,"",null,null,0,0,0,0,null,80]
[39,null,"",null,null,null,"",null,null,null,"",null,null,null,"",null,null,null,"",null,null,0,0,0,0,null,80]
[40,null,"",null,null,null,"",null,null,null,"",null,null,null,"",null,null,null,"",null,null,0,0,0,0,null,80]
[41,null,"",null,null,null,"",null,null,null,"",null,null,null,"",null,null,null,"",null,null,0,0,0,0,null,80]
[42,null,"",null,null,null,"",null,null,null,"",null,null,null,"",null,null,null,"",null,null,0,0,0,0,null,80]
[43,null,"",null,null,null,"",null,null,null,"",null,null,null,"",null,null,null,"",null,null,0,0,0,0,null,80]
[44,null,"",null,null,null,"",null,null,null,"",null,null,null,"",null,null,null,"",null,null,0,0,0,0,null,80]
[45,null,"",null,null,null,"",null,null,null,"",null,null,null,"",null,null,null,"",null,null,0,0,0,0,null,80]
[46,null,"",null,null,null,"",null,null,null,"",null,null,null,"",null,null,null,"",null,null,0,0,0,0,null,80]
[47,null,"",null,null,null,"",null,null,null,"",null,null,null,"",null,null,null,"",null,null,0,0,0,0,null,80]
[48,null,"",null,null,null,"",null,null,null,"",null,null,null,"",null,null,null,"",null,null,0,0,0,0,null,80]
[49,null,"",null,null,null,"",null,null,null,"",null,null,null,"",null,null,null,"",null,null,0,0,0,0,null,80]
[50,null,"",null,null,null,"",null,null,null,"",null,null,null,"",null,null,null,"",null,null,0,0,0,0,null,80]
[51,null,"",null,null,null,"",null,null,null,"",null,null,null,"",null,null,null,"",null,null,0,0,0,0,null,80]
[52,null,"",null,null,null,"",null,null,null,"",null,null,null,"",null,null,null,"",null,null,0,0,0,0,null,80]
[53,null,"",null,null,null,"",null,null,null,"",null,null,null,"",null,null,null,"",null,null,0,0,0,0,null,80]
[54,null,"",null,null,null,"",null,null,null,"",null,null,null,"",null,null,null,"",null,null,0,0,0,0,null,80]
[55,null,"",null,null,null,"",null,null,null,"",null,null,null,"",null,null,null,"",null,null,0,0,0,0,null,80]
[56,null,"",null,null,null,"",null,null,null,"",null,null,null,"",null,null,null,"",null,null,0,0,0,0,null,80]
[57,null,"",null,null,null,"",null,null,null,"",null,null,null,"",null,null,null,"",null,null,0,0,0,0,null,80]
[58,null,"",null,null,null,"",null,null,null,"",null,null,null,"",null,null,null,"",null,null,0,0,0,0,null,80]
[59,null,"",null,null,null,"",null,null,null,"",null,null,null,"",null,null,null,"",null,null,0,0,0,0,null,80]
[60,null,"",null,null,null,"",null,null,null,"",null,null,null,"",null,null,null,"",null,null,0,0,0,0,null,80]
[61,null,"",null,null,null,"",null,null,null,"",null,null,null,"",null,null,null,"",null,null,0,0,0,0,null,80]
[62,null,"",null,null,null,"",null,null,null,"",null,null,null,"",null,null,null,"",null,null,0,0,0,0,null,80]
[63,null,"",null,null,null,"",null,null,null,"",null,null,null,"",null,null,null,"",null,null,0,0,0,0,null,80]
[64,null,"",null,null,null,"",null,null,null,"",null,null,null,"",null,null,null,"",null,null,0,0,0,0,null,80]
[65,null,"",null,null,null,"",null,null,null,"",null,null,null,""]
[]
[]
["NB DE PARTICIPANTS",{"$f":"+COUNTA(B13:B38)","v":1},null,null,null,{"$f":"+COUNTA(F13:F38)","v":0},null,null,null,{"$f":"+COUNTA(J13:J38)","v":0},null,null,null,{"$f":"+COUNTA(N13:N38)","v":4},null,null,null,{"$f":"+COUNTA(R13:R38)","v":4},null,null,null,"MOYENNE MENSUELLE PARTICIPANTS",null,null,{"$f":"(B80+F80+J80+N80+R80)/5","v":1.8}]

{"sheet":"FEVRIER","index":1,"n_rows":40,"n_cols":27,"rows_kept":40,"cut":false,"hidden":false,"merged":[[39,1,39,2],[39,5,39,6],[39,9,39,10],[39,13,39,14],[39,17,39,18],[39,21,39,23],[9,21,11,21],[9,22,11,22],[9,23,11,23],[9,24,11,24],[9,25,11,25],[9,26,11,26],[8,2,8,3],[8,6,8,7],[8,10,8,11],[8,14,8,15],[8,18,8,19],[8,21,8,26],[6,2,6,3],[7,2,7,3],[7,6,7,7],[7,10,7,11],[7,14,7,15],[7,18,7,19],[4,2,4,3],[4,6,4,7],[4,10,4,11],[4,14,4,15],[4,18,4,19],[5,2,5,3],[2,2,2,3],[2,6,2,7],[2,10,2,11],[2,14,2,15],[2,18,2,19],[3,2,3,3],[3,6,3,7],[3,10,3,11],[3,14,3,15],[3,18,3,19],[0,2,0,3],[0,6,0,7],[0,10,0,11],[0,14,0,15],[0,18,0,19],[1,2,1,3],[1,6,1,7],[1,10,1,11],[1,14,1,15],[1,18,1,19]]}
[null,"Date :",null,null,null,"Date :",null,null,null,"Date :",null,null,null,"Date :",null,null,null,"Date :"]
[null,"Lieu",null,null,null,"Lieu",null,null,null,"Lieu",null,null,null,"Lieu",null,null,null,"Lieu"]
[null,"Responsable",null,null,null,"Responsable",null,null,null,"Responsable",null,null,null,"Responsable",null,null,null,"Responsable"]
[null,"Thèmes",null,null,null,"Thèmes",null,null,null,"Thèmes",null,null,null,"Thèmes",null,null,null,"Thèmes"]
[]
[]
[]
[]
[null,"Autre thème",null,null,null,"Autre thème",null,null,null,"Autre thème",null,null,null,"Autre thème",null,null,null,"Autre thème",null,null,null,"RECAP MENSUEL"]
[null,"Durée",3,null,null,"Durée",5,null,null,"Durée",null,null,null,"Durée",null,null,null,"Durée",null,null,null,"Nb manœuvre tps de travail","Nb manœuvres de repos","TOTAL manœuvres","nb heures totales","heures sup mensuelle","Heures restant sur quota"]
[]
["Personnel","Position",null,null,null,"Position",null,null,null,"Position",null,null,null,"Position",null,null,null,"Position"]
["A","Garde/SHR",{"$f":"IF(OR(B13=\"garde/SHR\",B13=\"Repos\"),$C$10,\"\")","v":3},null,null,null,{"$f":"IF(OR(F13=\"garde\",F13=\"repos\",F13=\"SHR\"),$G$10,\"\")","v":""},null,null,null,{"$f":"IF(OR(J13=\"garde\",J13=\"repos\",J13=\"SHR\"),$K$10,\"\")","v":""},null,null,null,{"$f":"IF(OR(N13=\"garde\",N13=\"repos\",N13=\"SHR\"),$O$10,\"\")","v":""},null,null,null,{"$f":"IF(OR(R13=\"garde\",R13=\"repos\",R13=\"SHR\"),$K$10,\"\")","v":""},null,null,{"$f":"COUNTIF(B13:J13,\"garde\")","v":0},{"$f":"COUNTIF(B13:J13,\"repos\")","v":0},{"$f":"V13+W13","v":0},{"$f":"SUM(C13:K13)","v":3},{"$f":"SUM(C13:S13)","v":3},{"$f":"80-Z13","v":77}]
["B","Repos",{"$f":"IF(OR(B14=\"garde\",B14=\"SHR\",B14=\"Repos\"),$C$10,\"\")","v":3},null,null,null,{"$f":"IF(OR(F14=\"garde\",F14=\"repos\",F14=\"SHR\"),$G$10,\"\")","v":""},null,null,null,{"$f":"IF(OR(J14=\"garde\",J14=\"repos\",J14=\"SHR\"),$K$10,\"\")","v":""},null,null,null,{"$f":"IF(OR(N14=\"garde\",N14=\"repos\",N14=\"SHR\"),$O$10,\"\")","v":""},null,null,null,{"$f":"IF(OR(R14=\"garde\",R14=\"repos\",R14=\"SHR\"),$C$10,\"\")","v":""},null,null,{"$f":"COUNTIF(B14:J14,\"garde\")","v":0},{"$f":"COUNTIF(B14:J14,\"repos\")","v":1},{"$f":"V14+W14","v":1},{"$f":"SUM(C14:K14)","v":3},3,{"$f":"80-Z14","v":77}]
["C",null,"",null,null,null,"",null,null,null,"",null,null,null,"",null,null,null,"",null,null,0,0,0,0,0,80]
["D",null,"",null,null,null,"",null,null,null,"",null,null,null,"",null,null,null,"",null,null,0,0,0,0,0,80]
["E",null,"",null,null,null,"",null,null,null,"",null,null,null,"",null,null,null,"",null,null,0,0,0,0,0,80]
["F",null,"",null,null,null,"",null,null,null,"",null,null,null,"",null,null,null,"",null,null,0,0,0,0,0,80]
["G",null,"",null,null,null,"",null,null,null,"",null,null,null,"",null,null,null,"",null,null,0,0,0,0,0,80]
["H",null,"",null,null,null,"",null,null,null,"",null,null,null,"",null,null,null,"",null,null,0,0,0,0,0,80]
["I",null,"",null,null,null,"",null,null,null,"",null,null,null,"",null,null,null,"",null,null,0,0,0,0,0,80]
["J",null,"",null,null,null,"",null,null,null,"",null,null,null,"",null,null,null,"",null,null,0,0,0,0,0,80]
["K",null,{"$f":"IF(OR(B23=\"Garde\",B23=\"Repos\",B23=\"SHR\"),$C$10,\"\")","v":""},null,null,null,"",null,null,null,"",null,null,null,"",null,null,null,"",null,null,0,0,0,0,0,80]
["L",null,"",null,null,null,"",null,null,null,"",null,null,null,"",null,null,null,"",null,null,0,0,0,0,0,80]
["M",null,"",null,null,null,"",null,null,null,"",null,null,null,"",null,null,null,"",null,null,0,0,0,0,0,80]
["N",null,"",null,null,null,"",null,null,null,"",null,null,null,"",null,null,null,"",null,null,0,0,0,0,0,80]
["O",null,"",null,null,null,"",null,null,null,"",null,null,null,"",null,null,null,"",null,null,0,0,0,0,0,80]
["P",null,"",null,null,null,"",null,null,null,"",null,null,null,"",null,null,null,"",null,null,0,0,0,0,0,80]
["Q",null,"",null,null,null,"",null,null,null,"",null,null,null,"",null,null,null,"",null,null,0,0,0,0,0,80]
["R",null,"",null,null,null,"",null,null,null,"",null,null,null,"",null,null,null,"",null,null,0,0,0,0,0,80]
["S",null,"",null,null,null,"",null,null,null,"",null,null,null,"",null,null,null,"",null,null,0,0,0,0,0,80]
["T",null,"",null,null,null,"",null,null,null,"",null,null,null,"",null,null,null,"",null,null,0,0,0,0,0,80]
["U",null,"",null,null,null,"",null,null,null,"",null,null,null,"",null,null,null,"",null,null,0,0,0,0,0,80]
["V",null,"",null,null,null,"",null,null,null,"",null,null,null,"",null,null,null,"",null,null,0,0,0,0,0,80]
["W",null,"",null,null,null,"",null,null,null,"",null,null,null,"",null,null,null,"",null,null,0,0,0,0,0,80]
["X",null,"",null,null,null,"",null,null,null,"",null,null,null,"",null,null,null,"",null,null,0,0,0,0,0,80]
["Y",null,"",null,null,null,"",null,null,null,"",null,null,null,"",null,null,null,"",null,null,0,0,0,0,0,80]
["Z",null,"",null,null,null,"",null,null,null,"",null,null,null,"",null,null,null,"",null,null,0,0,0,0,0,80]
[]
["NB DE PARTICIPANTS",{"$f":"+COUNTA(B13:B38)","v":2},null,null,null,{"$f":"+COUNTA(F13:F38)","v":0},null,null,null,{"$f":"+COUNTA(J13:J38)","v":0},null,null,null,{"$f":"+COUNTA(N13:N38)","v":0},null,null,null,{"$f":"+COUNTA(R13:R38)","v":0},null,null,null,"MOYENNE MENSUELLE PARTICIPANTS",null,null,{"$f":"(B40+F40+J40+N40+R40)/5","v":0.4}]

{"sheet":"MARS","index":2,"n_rows":0,"n_cols":0,"rows_kept":0,"cut":false,"hidden":false,"merged":[]}

{"sheet":"AVRIL","index":3,"n_rows":0,"n_cols":0,"rows_kept":0,"cut":false,"hidden":false,"merged":[]}

{"sheet":"MAI","index":4,"n_rows":0,"n_cols":0,"rows_kept":0,"cut":false,"hidden":false,"merged":[]}

{"sheet":"JUIN","index":5,"n_rows":0,"n_cols":0,"rows_kept":0,"cut":false,"hidden":false,"merged":[]}

{"sheet":"JUILLET","index":6,"n_rows":0,"n_cols":0,"rows_kept":0,"cut":false,"hidden":false,"merged":[]}

{"sheet":"AOUT","index":7,"n_rows":0,"n_cols":0,"rows_kept":0,"cut":false,"hidden":false,"merged":[]}

{"sheet":"SEPT","index":8,"n_rows":0,"n_cols":0,"rows_kept":0,"cut":false,"hidden":false,"merged":[]}

{"sheet":"OCT","index":9,"n_rows":0,"n_cols":0,"rows_kept":0,"cut":false,"hidden":false,"merged":[]}

{"sheet":"NOV","index":10,"n_rows":0,"n_cols":0,"rows_kept":0,"cut":false,"hidden":false,"merged":[]}

{"sheet":"DEC","index":11,"n_rows":0,"n_cols":0,"rows_kept":0,"cut":false,"hidden":false,"merged":[]}

{"sheet":"RECAP","index":12,"n_rows":0,"n_cols":0,"rows_kept":0,"cut":false,"hidden":false,"merged":[]}

{"sheet":"Données","index":13,"n_rows":32,"n_cols":7,"rows_kept":32,"cut":false,"hidden":false,"merged":[]}
[]
["a",null,"Garde/SHR",null,null,null,"A"]
["b",null,"Repos",null,null,null,"B"]
["c",null,null,null,null,null,"C"]
["d",null,null,null,null,null,"D"]
["e",null,null,null,null,null,"E"]
["f",null,null,null,null,null,"F"]
["g",null,null,null,null,null,"G"]
["h",null,"Equipement",null,null,null,"H"]
["i",null,"Ancrages",null,null,null,"I"]
["j",null,"Amarrages",null,null,null,"J"]
["k",null,"Techniques de réchappe évolution sur cordes",null,null,null,"K"]
["l",null,"Décrochage d'équipier",null,null,null,"L"]
["m",null,"PRM sur Tyro",null,null,null,"M"]
["n",null,"PRM sur point fixe"]
["o",null,"Rappel Guidé"]
["p",null,"Tyrolienne"]
["q",null,"Tyro oblique"]
["r",null,"Secours paroi -40m"]
["s",null,"Secours paroi +de 40m"]
["t",null,"TEF"]
["u",null,"Utilisation des treuils"]
["v",null,"Mât de déport"]
["w",null,"Brancards"]
["x",null,"Environnements civières"]
["y",null,"GOC"]
["z",null,"Freins de charge"]
[null,null,"Palans"]
[null,null,"Bloqueurs"]
[null,null,"Poulies Bloqueurs"]
[null,null,"Passages de cordes"]
[null,null,"Rappel"]

{"sheet":"Feuil3","index":14,"n_rows":27,"n_cols":1,"rows_kept":27,"cut":false,"hidden":false,"merged":[]}
[]
[]
["TECHNIQUES INDIVIDUELLES"]
[]
["Equipement"]
["Ancrages"]
["Amarrages"]
["Techniques de réchappe évolution sur cordes"]
["Décrochage d'équipier"]
["PRM sur Tyro"]
["PRM sur point fixe"]
["Rappel Guidé"]
["Tyrolienne"]
["Tyro oblique"]
["Secours paroi -40m"]
["Secours paroi +de 40m"]
["TEF"]
["Utilisation des treuils"]
["Mât de déport"]
["Brancards"]
["Environnements civières"]
["GOC"]
["Freins de charge"]
["Palans"]
["Bloqueurs"]
["Poulies Bloqueurs"]
["Passages de cordes"]